[Event "NJSK 2023 Jeugd C"]
[Site "Almelo, Netherlands"]
[Date "2023.04.30"]
[Round "1.10"]
[White "Lopes, Samuel"]
[Black "De Wit, Evan"]
[Result "1/2-1/2"]
[TimeControl "90min/40moves + 30min + 30sec/move"]
[WhiteElo "1865"]
[BlackElo "1563"]

1. e4 {[%clk 01:30:56]} {[%emt 00:00:03]} c5 {[%clk 01:30:52]} {[%emt
00:00:08]} 2. Nf3 {[%clk 01:31:19]} {[%emt 00:00:07]} d6 {[%clk 01:31:16]}
{[%emt 00:00:06]} 3. Bb5+ {[%clk 01:31:42]} {[%emt 00:00:06]} Bd7 {[%clk
01:31:17]} {[%emt 00:00:29]} 4. c4 {[%clk 01:32:02]} {[%emt 00:00:10]} a6
{[%clk 01:30:51]} {[%emt 00:00:56]} 5. Bxd7+ {[%clk 01:32:15]} {[%emt
00:00:17]} Nxd7 {[%clk 01:31:11]} {[%emt 00:00:10]} 6. Nc3 {[%clk 01:32:17]}
{[%emt 00:00:29]} Ngf6 {[%clk 01:31:25]} {[%emt 00:00:15]} 7. O-O {[%clk
01:32:27]} {[%emt 00:00:21]} e6 {[%clk 01:31:30]} {[%emt 00:00:24]} 8. d4
{[%clk 01:32:11]} {[%emt 00:00:46]} cxd4 {[%clk 01:31:11]} {[%emt 00:00:49]} 9.
Nxd4 {[%clk 01:32:20]} {[%emt 00:00:21]} Nc5 {[%clk 01:30:57]} {[%emt
00:00:43]} 10. Qe2 {[%clk 01:24:57]} {[%emt 00:07:53]} Be7 {[%clk 01:28:02]}
{[%emt 00:03:25]} 11. Kh1 {[%clk 01:18:05]} {[%emt 00:07:23]} Qc7 {[%clk
01:25:06]} {[%emt 00:03:25]} 12. f3 {[%clk 01:17:09]} {[%emt 00:01:25]} h5
{[%clk 01:23:51]} {[%emt 00:01:45]} 13. Be3 {[%clk 01:15:38]} {[%emt 00:02:02]}
Ncd7 {[%clk 01:22:41]} {[%emt 00:01:39]} 14. Rac1 {[%clk 01:13:38]} {[%emt
00:02:30]} Rg8 {[%clk 01:20:08]} {[%emt 00:03:03]} 15. Bg5 {[%clk 01:09:34]}
{[%emt 00:04:34]} Qa5 {[%clk 00:58:44]} {[%emt 00:21:51]} 16. Qd2 {[%clk
00:50:49]} {[%emt 00:19:17]} Ne5 {[%clk 00:46:12]} {[%emt 00:13:01]} 17. b3
{[%clk 00:45:06]} {[%emt 00:06:15]} Rh8 {[%clk 00:35:55]} {[%emt 00:10:46]} 18.
Rfd1 {[%clk 00:42:19]} {[%emt 00:03:17]} h4 {[%clk 00:33:37]} {[%emt 00:02:49]}
19. f4 {[%clk 00:22:34]} {[%emt 00:20:15]} Ned7 {[%clk 00:29:49]} {[%emt
00:04:17]} 20. Nf3 {[%clk 00:18:29]} {[%emt 00:04:35]} h3 {[%clk 00:22:14]}
{[%emt 00:08:05]} 21. g3 {[%clk 00:18:40]} {[%emt 00:00:20]} Qc5 {[%clk
00:21:34]} {[%emt 00:01:11]} 22. Rf1 {[%clk 00:11:42]} {[%emt 00:07:28]} Qc6
{[%clk 00:19:38]} {[%emt 00:02:25]} 23. Rce1 {[%clk 00:11:28]} {[%emt
00:00:45]} Nc5 {[%clk 00:18:25]} {[%emt 00:01:44]} 24. Qc2 {[%clk 00:08:58]}
{[%emt 00:02:59]} O-O-O {[%clk 00:16:44]} {[%emt 00:02:10]} 25. e5 {[%clk
00:03:39]} {[%emt 00:05:49]} Ng8 {[%clk 00:16:30]} {[%emt 00:00:44]} 26. Bxe7
{[%clk 00:03:58]} {[%emt 00:00:10]} Nxe7 {[%clk 00:16:53]} {[%emt 00:00:08]} 27.
exd6 {[%clk 00:02:28]} {[%emt 00:02:01]} Nf5 {[%clk 00:16:40]} {[%emt
00:00:42]} 28. Ne4 {[%clk 00:02:24]} {[%emt 00:00:33]} Nxd6 {[%clk 00:15:55]}
{[%emt 00:01:15]} 29. Nxc5 {[%clk 00:02:38]} {[%emt 00:00:17]} Qxc5 {[%clk
00:16:09]} {[%emt 00:00:16]} 30. Qf2 {[%clk 00:02:50]} {[%emt 00:00:18]} Qc6
{[%clk 00:15:07]} {[%emt 00:01:31]} 31. Kg1 {[%clk 00:02:22]} {[%emt 00:00:59]}
Ne4 {[%clk 00:14:48]} {[%emt 00:00:48]} 32. Qe3 {[%clk 00:02:06]} {[%emt
00:00:46]} Nc5 {[%clk 00:14:27]} {[%emt 00:00:51]} 33. Re2 {[%clk 00:01:29]}
{[%emt 00:01:08]} Rd3 {[%clk 00:14:30]} {[%emt 00:00:27]} 34. Qf2 {[%clk
00:01:44]} {[%emt 00:00:15]} Ne4 {[%clk 00:14:09]} {[%emt 00:00:51]} 35. Ne5
{[%clk 00:01:10]} {[%emt 00:01:04]} Nxf2 {[%clk 00:13:49]} {[%emt 00:00:51]} 36.
Nxc6 {[%clk 00:01:39]} {[%emt 00:00:02]} bxc6 {[%clk 00:13:48]} {[%emt
00:00:30]} 37. Kxf2 {[%clk 00:01:35]} {[%emt 00:00:34]} Rhd8 {[%clk 00:14:08]}
{[%emt 00:00:09]} 38. Re3 {[%clk 00:01:35]} {[%emt 00:00:30]} Rd2+ {[%clk
00:14:14]} {[%emt 00:00:25]} 39. Re2 {[%clk 00:02:00]} {[%emt 00:00:05]} Kc7
{[%clk 00:14:24]} {[%emt 00:00:20]} 40. Rfe1 {[%clk 00:01:36]} {[%emt
00:00:54]} Kb6 {[%clk 00:14:05]} {[%emt 00:00:48]} 41. a3 {[%clk 00:00:44]}
{[%emt 00:01:23]} R8d3 {[%clk 00:13:25]} {[%emt 00:01:09]} 42. Rxd2 {[%clk
00:01:07]} {[%emt 00:00:07]} Rxd2+ {[%clk 00:13:34]} {[%emt 00:00:21]} 43. Re2
{[%clk 00:01:29]} {[%emt 00:00:09]} Rd3 {[%clk 00:13:53]} {[%emt 00:00:10]} 44.
Re3 {[%clk 00:01:53]} {[%emt 00:00:06]} 1/2-1/2

[Event "NJSK 2023 Jeugd C"]
[Site "Almelo, Netherlands"]
[Date "2023.04.30"]
[Round "1.11"]
[White "Verwer, Oscar"]
[Black "Krylov, Philippe"]
[Result "0-1"]
[TimeControl "90min/40moves + 30min + 30sec/move"]
[WhiteElo "1549"]
[BlackElo "1858"]

1. e4 {[%clk 01:30:58]} {[%emt 00:00:02]} c6 {[%clk 01:30:49]} {[%emt
00:00:11]} 2. Nf3 {[%clk 01:31:12]} {[%emt 00:00:16]} d5 {[%clk 01:31:12]}
{[%emt 00:00:07]} 3. Nc3 {[%clk 01:31:32]} {[%emt 00:00:10]} Nf6 {[%clk
01:31:01]} {[%emt 00:00:40]} 4. e5 {[%clk 01:30:14]} {[%emt 00:01:48]} Ne4
{[%clk 01:31:17]} {[%emt 00:00:15]} 5. d4 {[%clk 01:30:22]} {[%emt 00:00:22]}
Nxc3 {[%clk 01:30:16]} {[%emt 00:01:31]} 6. bxc3 {[%clk 01:30:41]} {[%emt
00:00:12]} c5 {[%clk 01:26:08]} {[%emt 00:04:38]} 7. c4 {[%clk 01:30:12]}
{[%emt 00:00:59]} Nc6 {[%clk 01:22:10]} {[%emt 00:04:28]} 8. cxd5 {[%clk
01:12:10]} {[%emt 00:18:31]} Qxd5 {[%clk 01:22:00]} {[%emt 00:00:40]} 9. Be3
{[%clk 00:57:05]} {[%emt 00:15:36]} cxd4 {[%clk 01:18:28]} {[%emt 00:04:02]} 10.
Bxd4 {[%clk 00:48:20]} {[%emt 00:09:15]} Bg4 {[%clk 01:16:05]} {[%emt
00:02:53]} 11. Be2 {[%clk 00:44:39]} {[%emt 00:04:11]} Rd8 {[%clk 01:07:56]}
{[%emt 00:08:39]} 12. c3 {[%clk 00:43:17]} {[%emt 00:01:53]} e6 {[%clk
00:45:24]} {[%emt 00:23:02]} 13. O-O {[%clk 00:41:44]} {[%emt 00:02:02]} Be7
{[%clk 00:38:19]} {[%emt 00:08:06]} 14. h3 {[%clk 00:40:45]} {[%emt 00:01:59]}
Bh5 {[%clk 00:38:02]} {[%emt 00:00:45]} 15. Qd2 {[%clk 00:34:51]} {[%emt
00:06:25]} O-O {[%clk 00:31:21]} {[%emt 00:07:10]} 16. Rfd1 {[%clk 00:31:47]}
{[%emt 00:03:35]} Qa5 {[%clk 00:30:05]} {[%emt 00:01:46]} 17. Qe3 {[%clk
00:27:57]} {[%emt 00:04:19]} Rd7 {[%clk 00:27:08]} {[%emt 00:03:27]} 18. Rd2
{[%clk 00:23:09]} {[%emt 00:05:18]} Rfd8 {[%clk 00:27:00]} {[%emt 00:00:39]} 19.
Rad1 {[%clk 00:23:25]} {[%emt 00:00:14]} h6 {[%clk 00:21:27]} {[%emt 00:06:03]}
20. Qe4 {[%clk 00:16:15]} {[%emt 00:07:40]} Qc7 {[%clk 00:17:28]} {[%emt
00:04:29]} 21. Bd3 {[%clk 00:14:14]} {[%emt 00:02:31]} Bg6 {[%clk 00:16:46]}
{[%emt 00:01:12]} 22. Qg4 {[%clk 00:13:27]} {[%emt 00:01:17]} Bxd3 {[%clk
00:14:08]} {[%emt 00:03:08]} 23. Rxd3 {[%clk 00:13:50]} {[%emt 00:00:07]} Rd5
{[%clk 00:13:02]} {[%emt 00:01:36]} 24. R3d2 {[%clk 00:09:37]} {[%emt
00:04:43]} Nxd4 {[%clk 00:08:29]} {[%emt 00:05:03]} 25. cxd4 {[%clk 00:08:59]}
{[%emt 00:01:08]} b5 {[%clk 00:08:15]} {[%emt 00:00:44]} 26. Qe4 {[%clk
00:07:46]} {[%emt 00:01:42]} Rc8 {[%clk 00:06:55]} {[%emt 00:01:50]} 27. g4
{[%clk 00:07:15]} {[%emt 00:01:01]} b4 {[%clk 00:05:29]} {[%emt 00:01:56]} 28.
h4 {[%clk 00:07:04]} {[%emt 00:00:41]} Qd8 {[%clk 00:05:47]} {[%emt 00:00:13]}
29. h5 {[%clk 00:06:18]} {[%emt 00:01:15]} Qc7 {[%clk 00:05:45]} {[%emt
00:00:32]} 30. Qe3 {[%clk 00:06:35]} {[%emt 00:00:14]} Qd8 {[%clk 00:05:37]}
{[%emt 00:00:38]} 31. Qe4 {[%clk 00:06:53]} {[%emt 00:00:12]} Rc3 {[%clk
00:05:46]} {[%emt 00:00:20]} 32. Rc2 {[%clk 00:06:04]} {[%emt 00:01:19]} Qa5
{[%clk 00:04:40]} {[%emt 00:01:37]} 33. Rdc1 {[%clk 00:06:00]} {[%emt
00:00:33]} Ra3 {[%clk 00:02:37]} {[%emt 00:02:33]} 34. Qe2 {[%clk 00:05:16]}
{[%emt 00:01:14]} Rd8 {[%clk 00:02:29]} {[%emt 00:00:38]} 35. Ne1 {[%clk
00:04:49]} {[%emt 00:00:57]} Rxd4 {[%clk 00:02:32]} {[%emt 00:00:27]} 36. Rb2
{[%clk 00:02:59]} {[%emt 00:02:20]} Rd8 {[%clk 00:01:35]} {[%emt 00:01:28]} 37.
f4 {[%clk 00:02:53]} {[%emt 00:00:36]} Qb6+ {[%clk 00:01:26]} {[%emt 00:00:39]}
38. Kh2 {[%clk 00:02:48]} {[%emt 00:00:34]} Qe3 {[%clk 00:01:01]} {[%emt
00:00:56]} 39. Qxe3 {[%clk 00:01:28]} {[%emt 00:01:49]} Rxe3 {[%clk 00:01:28]}
{[%emt 00:00:03]} 40. Rbc2 {[%clk 00:01:22]} {[%emt 00:00:36]} Ra3 {[%clk
00:00:53]} {[%emt 00:01:05]} 41. Re2 {[%clk 00:01:09]} {[%emt 00:00:43]} a5
{[%emt 00:00:26]} 42. f5 {[%clk 00:01:05]} {[%emt 00:00:30]} a4 {[%clk
00:00:52]} {[%emt 00:00:39]} 43. Rb1 {[%clk 00:01:19]} {[%emt 00:00:16]} Rc3
{[%clk 00:01:03]} {[%emt 00:00:18]} 44. Rbb2 {[%clk 00:00:33]} {[%emt
00:01:17]} Rd4 {[%clk 00:00:58]} {[%emt 00:00:35]} 45. Rg2 {[%clk 00:00:48]}
{[%emt 00:00:16]} b3 {[%clk 00:00:45]} {[%emt 00:00:43]} 46. axb3 {[%clk
00:01:10]} {[%emt 00:00:08]} axb3 {[%clk 00:01:11]} {[%emt 00:00:04]} 47. Rg3
{[%clk 00:01:24]} {[%emt 00:00:15]} Rdc4 {[%clk 00:00:50]} {[%emt 00:00:51]} 48.
Rxb3 {[%clk 00:01:33]} {[%emt 00:00:21]} Rxg3 {[%clk 00:01:09]} {[%emt
00:00:11]} 49. Kxg3 {[%clk 00:01:54]} {[%emt 00:00:09]} exf5 {[%clk 00:01:35]}
{[%emt 00:00:05]} 50. gxf5 {[%clk 00:02:16]} {[%emt 00:00:07]} Bh4+ {[%clk
00:02:02]} {[%emt 00:00:03]} 0-1

[Event "NJSK 2023 Jeugd C"]
[Site "Almelo, Netherlands"]
[Date "2023.04.30"]
[Round "1.12"]
[White "Roolvink, William"]
[Black "Frederiks, Jesse"]
[Result "1-0"]
[TimeControl "90min/40moves + 30min + 30sec/move"]
[WhiteElo "1852"]
[BlackElo "1510"]

1. e4 {[%clk 01:30:43]} {[%emt 00:00:17]} e6 {[%clk 01:30:57]} {[%emt
00:00:03]} 2. Nf3 {[%clk 01:31:05]} {[%emt 00:00:08]} d5 {[%clk 01:31:17]}
{[%emt 00:00:10]} 3. Nc3 {[%clk 01:31:35]} d4 {[%clk 01:30:04]} {[%emt
00:01:43]} 4. Ne2 {[%clk 01:32:02]} {[%emt 00:00:02]} c5 {[%clk 01:30:20]}
{[%emt 00:00:15]} 5. c3 {[%clk 01:32:25]} {[%emt 00:00:07]} Nc6 {[%clk
01:29:49]} {[%emt 00:01:01]} 6. cxd4 {[%clk 01:32:34]} {[%emt 00:00:21]} cxd4
{[%clk 01:29:59]} {[%emt 00:00:20]} 7. Qa4 {[%clk 01:32:51]} {[%emt 00:00:13]}
Bc5 {[%clk 01:26:19]} {[%emt 00:04:09]} 8. b4 {[%clk 01:26:29]} {[%emt
00:06:53]} d3 {[%clk 01:18:51]} {[%emt 00:07:58]} 9. bxc5 {[%clk 01:22:09]}
{[%emt 00:04:50]} dxe2 {[%clk 01:18:44]} {[%emt 00:00:38]} 10. Bxe2 {[%clk
01:22:25]} {[%emt 00:00:13]} Bd7 {[%clk 01:15:39]} {[%emt 00:03:35]} 11. d4
{[%clk 01:18:31]} {[%emt 00:04:24]} Nf6 {[%clk 01:14:16]} {[%emt 00:01:53]} 12.
Qc2 {[%clk 01:15:08]} {[%emt 00:03:54]} Nb4 {[%clk 01:06:52]} {[%emt 00:07:54]}
13. Qb1 {[%clk 01:13:51]} {[%emt 00:01:47]} a5 {[%clk 01:05:20]} {[%emt
00:02:01]} 14. a3 {[%clk 01:13:47]} {[%emt 00:00:34]} Nc6 {[%clk 01:04:45]}
{[%emt 00:01:04]} 15. Bf4 {[%clk 01:04:26]} {[%emt 00:09:52]} O-O {[%clk
01:01:09]} {[%emt 00:04:05]} 16. Bd6 {[%clk 00:58:42]} {[%emt 00:06:15]} Re8
{[%clk 00:59:59]} {[%emt 00:01:39]} 17. O-O {[%clk 00:57:49]} {[%emt 00:01:24]}
a4 {[%clk 00:55:56]} {[%emt 00:04:33]} 18. e5 {[%clk 00:44:20]} {[%emt
00:13:58]} Nd5 {[%clk 00:54:04]} {[%emt 00:02:21]} 19. Qxb7 {[%clk 00:40:51]}
{[%emt 00:04:00]} Na5 {[%clk 00:53:42]} {[%emt 00:00:52]} 20. Qb2 {[%clk
00:39:56]} {[%emt 00:01:25]} Nb3 {[%clk 00:52:26]} {[%emt 00:01:46]} 21. Rab1
{[%clk 00:40:05]} {[%emt 00:00:21]} Bc6 {[%clk 00:47:09]} {[%emt 00:05:47]} 22.
Nd2 {[%clk 00:38:00]} {[%emt 00:02:35]} Nf4 {[%clk 00:44:49]} {[%emt 00:02:50]}
23. Bf3 {[%clk 00:30:50]} {[%emt 00:07:40]} Bxf3 {[%clk 00:31:35]} {[%emt
00:13:44]} 24. Nxf3 {[%clk 00:30:30]} {[%emt 00:00:50]} h5 {[%clk 00:28:27]}
{[%emt 00:03:38]} 25. g3 {[%clk 00:25:16]} {[%emt 00:05:44]} Ng6 {[%clk
00:26:14]} {[%emt 00:02:43]} 26. Nd2 {[%clk 00:23:25]} {[%emt 00:02:21]} Nxd2
{[%clk 00:26:10]} {[%emt 00:00:34]} 27. Qxd2 {[%clk 00:23:51]} {[%emt
00:00:03]} h4 {[%clk 00:26:06]} {[%emt 00:00:34]} 28. c6 {[%clk 00:23:03]}
{[%emt 00:01:18]} h3 {[%clk 00:24:32]} {[%emt 00:02:04]} 29. c7 {[%clk
00:21:47]} {[%emt 00:01:46]} Qd7 {[%clk 00:23:32]} {[%emt 00:01:30]} 30. f4
{[%clk 00:19:24]} {[%emt 00:02:53]} f5 {[%clk 00:19:51]} {[%emt 00:04:11]} 31.
Rb8 {[%clk 00:19:22]} {[%emt 00:00:32]} Nh8 {[%clk 00:18:55]} {[%emt 00:01:26]}
32. Rfb1 {[%clk 00:18:45]} {[%emt 00:01:07]} Nf7 {[%clk 00:18:35]} {[%emt
00:00:49]} 33. Rxa8 {[%clk 00:19:03]} {[%emt 00:00:13]} Nxd6 {[%clk 00:17:14]}
{[%emt 00:01:51]} 34. exd6 {[%clk 00:18:35]} {[%emt 00:00:58]} Rxa8 {[%clk
00:16:27]} {[%emt 00:01:17]} 35. Rb8+ {[%clk 00:18:53]} {[%emt 00:00:12]} Rxb8
{[%clk 00:16:40]} {[%emt 00:00:17]} 36. cxb8=Q+ {[%clk 00:19:15]} {[%emt
00:00:07]} Kh7 {[%clk 00:16:58]} {[%emt 00:00:13]} 37. Qc2 {[%clk 00:18:42]}
{[%emt 00:01:03]} Qf7 {[%clk 00:16:29]} {[%emt 00:00:58]} 38. Qcc8 {[%clk
00:18:42]} {[%emt 00:00:31]} Qf6 {[%clk 00:15:31]} {[%emt 00:01:28]} 39. Qh8+
{[%clk 00:18:39]} {[%emt 00:00:34]} Kg6 {[%clk 00:15:58]} {[%emt 00:00:02]} 40.
Qbe8+ {[%clk 00:18:59]} {[%emt 00:00:10]} Qf7 {[%clk 00:16:10]} {[%emt
00:00:18]} 41. d7 {[%clk 00:19:09]} {[%emt 00:00:20]} Qxe8 {[%clk 00:15:51]}
{[%emt 00:00:48]} 42. dxe8=Q+ {[%clk 00:19:34]} {[%emt 00:00:05]} Kf6 {[%clk
00:16:10]} {[%emt 00:00:12]} 43. Qhf8# {[%clk 00:19:31]} {[%emt 00:00:03]} 1-0

[Event "NJSK 2023 Jeugd C"]
[Site "Almelo, Netherlands"]
[Date "2023.04.30"]
[Round "1.13"]
[White "Klein Tuente, Sam"]
[Black "Wink, Luka"]
[Result "0-1"]
[TimeControl "90min/40moves + 30min + 30sec/move"]
[WhiteElo "1478"]
[BlackElo "1849"]

1. e4 {[%clk 01:30:56]} {[%emt 00:00:03]} c5 {[%clk 01:30:35]} {[%emt
00:00:25]} 2. Nf3 {[%clk 01:31:12]} {[%emt 00:00:14]} d6 {[%clk 01:30:58]}
{[%emt 00:00:08]} 3. d4 {[%clk 01:31:05]} {[%emt 00:00:37]} cxd4 {[%clk
01:31:21]} {[%emt 00:00:07]} 4. Nxd4 {[%clk 01:31:29]} {[%emt 00:00:06]} Nf6
{[%clk 01:31:29]} {[%emt 00:00:21]} 5. Nc3 {[%clk 01:31:49]} {[%emt 00:00:10]}
g6 {[%clk 01:31:28]} {[%emt 00:00:30]} 6. Bb5+ {[%clk 01:30:07]} {[%emt
00:02:13]} Bd7 {[%clk 01:30:57]} {[%emt 00:01:01]} 7. Bxd7+ {[%clk 01:29:49]}
{[%emt 00:00:48]} Qxd7 {[%clk 01:30:07]} {[%emt 00:01:20]} 8. Be3 {[%clk
01:29:20]} {[%emt 00:01:00]} Bg7 {[%clk 01:29:15]} {[%emt 00:01:21]} 9. O-O
{[%clk 01:28:52]} {[%emt 00:00:58]} Ng4 {[%clk 01:26:17]} {[%emt 00:03:28]} 10.
Qd2 {[%clk 01:23:31]} {[%emt 00:05:50]} Nxe3 {[%clk 01:26:15]} {[%emt
00:00:32]} 11. Qxe3 {[%clk 01:23:40]} {[%emt 00:00:21]} Nc6 {[%clk 01:25:35]}
{[%emt 00:01:11]} 12. Nb3 {[%clk 01:22:26]} {[%emt 00:01:43]} O-O {[%clk
01:23:07]} {[%emt 00:02:58]} 13. Rad1 {[%clk 01:20:55]} {[%emt 00:02:01]} Rab8
{[%clk 01:15:03]} {[%emt 00:08:34]} 14. Nc5 {[%clk 01:15:47]} {[%emt 00:05:38]}
Qc8 {[%clk 01:15:09]} {[%emt 00:00:25]} 15. Nb3 {[%clk 01:14:31]} {[%emt
00:01:46]} Ne5 {[%clk 01:09:29]} {[%emt 00:06:10]} 16. Nd5 {[%clk 01:12:09]}
{[%emt 00:02:52]} Re8 {[%clk 01:09:00]} {[%emt 00:00:59]} 17. c3 {[%clk
01:09:20]} {[%emt 00:03:19]} Nc4 {[%clk 01:05:56]} {[%emt 00:03:34]} 18. Qc1
{[%clk 01:09:01]} {[%emt 00:00:48]} b5 {[%clk 01:03:59]} {[%emt 00:02:27]} 19.
Nd4 {[%clk 01:07:45]} {[%emt 00:01:46]} a5 {[%clk 00:59:40]} {[%emt 00:04:49]}
20. b3 {[%clk 01:06:33]} {[%emt 00:01:42]} Ne5 {[%clk 00:56:25]} {[%emt
00:03:44]} 21. f4 {[%clk 01:04:26]} {[%emt 00:02:36]} Nc6 {[%clk 00:55:15]}
{[%emt 00:01:42]} 22. Qd2 {[%clk 00:59:35]} {[%emt 00:05:21]} Qb7 {[%clk
00:53:41]} {[%emt 00:02:04]} 23. Nxc6 {[%clk 00:59:13]} {[%emt 00:00:51]} Qxc6
{[%clk 00:54:03]} {[%emt 00:00:09]} 24. Rc1 {[%clk 00:59:12]} {[%emt 00:00:30]}
e6 {[%clk 00:53:04]} {[%emt 00:01:29]} 25. Ne3 {[%clk 00:59:08]} {[%emt
00:00:35]} Qxe4 {[%clk 00:53:16]} {[%emt 00:00:18]} 26. Nc2 {[%clk 00:58:39]}
{[%emt 00:00:59]} Rbc8 {[%clk 00:50:43]} {[%emt 00:03:03]} 27. Rfe1 {[%clk
00:56:46]} {[%emt 00:02:22]} Qc6 {[%clk 00:49:47]} {[%emt 00:01:26]} 28. Nd4
{[%clk 00:56:40]} {[%emt 00:00:37]} Qc5 {[%clk 00:46:53]} {[%emt 00:03:24]} 29.
Kh1 {[%clk 00:56:17]} {[%emt 00:00:53]} b4 {[%clk 00:46:29]} {[%emt 00:00:54]}
30. Re3 {[%clk 00:54:38]} {[%emt 00:02:09]} Bxd4 {[%clk 00:46:37]} {[%emt
00:00:22]} 31. Rh3 {[%clk 00:54:35]} {[%emt 00:00:33]} bxc3 {[%clk 00:46:10]}
{[%emt 00:00:57]} 32. Qe1 {[%clk 00:54:10]} {[%emt 00:00:54]} c2 {[%clk
00:44:29]} {[%emt 00:02:12]} 33. Qh4 {[%clk 00:54:19]} {[%emt 00:00:20]} h5
{[%clk 00:44:43]} {[%emt 00:00:17]} 34. Qg3 {[%clk 00:54:02]} {[%emt 00:00:48]}
Bb2 {[%clk 00:44:55]} {[%emt 00:00:18]} 35. Rxh5 {[%clk 00:52:04]} {[%emt
00:02:28]} Qxh5 {[%clk 00:45:19]} {[%emt 00:00:06]} 36. Rg1 {[%emt 00:00:13]}
c1=Q {[%clk 00:45:32]} {[%emt 00:00:14]} 37. h3 {[%clk 00:52:17]} {[%emt
00:00:36]} Bd4 {[%clk 00:45:46]} {[%emt 00:00:16]} 38. Re1 {[%clk 00:52:23]}
{[%emt 00:00:24]} Qhd1 {[%clk 00:45:53]} {[%emt 00:00:23]} 39. h4 {[%clk
00:52:23]} {[%emt 00:00:30]} Qxe1+ {[%clk 00:46:11]} {[%emt 00:00:13]} 40. Qxe1
{[%clk 00:52:43]} {[%emt 00:00:10]} Qxe1+ {[%clk 00:46:34]} {[%emt 00:00:07]}
41. Kh2 {[%clk 00:53:08]} {[%emt 00:00:05]} Qxh4# {[%clk 00:46:27]} {[%emt
00:00:07]} 0-1